[Event "*** Titled Tuesday Blitz AM"]
[Site "Chess.com"]
[Date "2020.01.07"]
[Round "6"]
[White "EugeneRougon"]
[Black "Fandorine"]
[Result "0-1"]
[WhiteElo "2726"]
[BlackElo "2911"]
[TimeControl "180+2"]
[EndTime "10:20:29 PST"]
[Termination "Fandorine won on time"]

1. e4 {[%clk 0:02:35.5]} 1... g6 {[%clk 0:02:59.1]} 2. d4 {[%clk 0:02:35.8]}
2... Bg7 {[%clk 0:03:00.7]} 3. Nc3 {[%clk 0:02:36.7]} 3... d6 {[%clk 0:03:02.2]}
4. Nf3 {[%clk 0:02:37.7]} 4... e6 {[%clk 0:03:01.5]} 5. Be2 {[%clk 0:02:34.6]}
5... Ne7 {[%clk 0:03:02.3]} 6. O-O {[%clk 0:02:36.2]} 6... Nd7 {[%clk
0:03:03.3]} 7. Be3 {[%clk 0:02:37.9]} 7... a6 {[%clk 0:03:03.1]} 8. a4 {[%clk
0:02:38.8]} 8... b6 {[%clk 0:03:04.5]} 9. Qd2 {[%clk 0:02:37.5]} 9... h6 {[%clk
0:03:05.4]} 10. Rad1 {[%clk 0:02:38.1]} 10... Bb7 {[%clk 0:03:06.7]} 11. Rfe1
{[%clk 0:02:36.5]} 11... Kf8 {[%clk 0:03:08.1]} 12. h3 {[%clk 0:02:33.5]} 12...
Kg8 {[%clk 0:03:07.8]} 13. Bf4 {[%clk 0:02:34.4]} 13... Kh7 {[%clk 0:03:06.7]}
14. Bd3 {[%clk 0:02:35]} 14... Rf8 {[%clk 0:03:07.3]} 15. Ne2 {[%clk 0:02:23.6]}
15... f5 {[%clk 0:02:41.9]} 16. exf5 {[%clk 0:02:00.3]} 16... Nxf5 {[%clk
0:02:36]} 17. Nh2 {[%clk 0:01:52.4]} 17... Nf6 {[%clk 0:02:30.7]} 18. Ng3 {[%clk
0:01:38.1]} 18... Qd7 {[%clk 0:02:24.9]} 19. Ng4 {[%clk 0:01:27.4]} 19... Nd5
{[%clk 0:02:15.7]} 20. Be3 {[%clk 0:01:08.1]} 20... Rae8 {[%clk 0:02:03.2]} 21.
c3 {[%clk 0:01:08.9]} 21... h5 {[%clk 0:01:53.1]} 22. Nh2 {[%clk 0:00:46]} 22...
Ndxe3 {[%clk 0:01:51.6]} 23. Rxe3 {[%clk 0:00:47.1]} 23... Bh6 {[%clk
0:01:44.4]} 24. Nxf5 {[%clk 0:00:35.2]} 24... exf5 {[%clk 0:01:43.1]} 25. Rxe8
{[%clk 0:00:35.8]} 25... Rxe8 {[%clk 0:01:37.9]} 26. Qc2 {[%clk 0:00:34.6]}
26... Kg7 {[%clk 0:01:38.1]} 27. Be2 {[%clk 0:00:33]} 27... Bf4 {[%clk
0:01:37.8]} 28. g3 {[%clk 0:00:26]} 28... Bh6 {[%clk 0:01:32.7]} 29. Bf3 {[%clk
0:00:27.2]} 29... Be4 {[%clk 0:01:26.7]} 30. Bxe4 {[%clk 0:00:26.9]} 30... fxe4
{[%clk 0:01:28.6]} 31. Nf1 {[%clk 0:00:25.1]} 31... Qxh3 {[%clk 0:01:28.4]} 32.
Re1 {[%clk 0:00:26.4]} 32... Qf5 {[%clk 0:01:28.8]} 33. Qe2 {[%clk 0:00:26.6]}
33... b5 {[%clk 0:01:27.8]} 34. axb5 {[%clk 0:00:27.4]} 34... axb5 {[%clk
0:01:29.7]} 35. Ra1 {[%clk 0:00:25.1]} 35... Re7 {[%clk 0:01:22.8]} 36. Kg2
{[%clk 0:00:25.5]} 36... e3 {[%clk 0:01:18.8]} 37. Nxe3 {[%clk 0:00:25.4]} 37...
Bxe3 {[%clk 0:01:18.8]} 38. fxe3 {[%clk 0:00:26.7]} 38... Qe4+ {[%clk 0:01:20]}
39. Qf3 {[%clk 0:00:28.1]} 39... Qxe3 {[%clk 0:01:16.2]} 40. Qxe3 {[%clk
0:00:26.3]} 40... Rxe3 {[%clk 0:01:18.1]} 41. Kf2 {[%clk 0:00:28.2]} 41... Rd3
{[%clk 0:01:13.5]} 42. Ra7 {[%clk 0:00:27.2]} 42... Rd2+ {[%clk 0:01:12.3]} 43.
Ke3 {[%clk 0:00:27.6]} 43... Rxb2 {[%clk 0:01:14.2]} 44. Rxc7+ {[%clk 0:00:29]}
44... Kf6 {[%clk 0:01:09.6]} 45. Rb7 {[%clk 0:00:23.9]} 45... Ke6 {[%clk
0:01:06.6]} 46. Rg7 {[%clk 0:00:22]} 46... Kf5 {[%clk 0:01:07.6]} 47. Rd7 {[%clk
0:00:20.1]} 47... Kg4 {[%clk 0:01:06.3]} 48. Rxd6 {[%clk 0:00:17.8]} 48... g5
{[%clk 0:01:07.8]} 49. d5 {[%clk 0:00:18.4]} 49... Rg2 {[%clk 0:01:00]} 50. Rf6
{[%clk 0:00:15.5]} 50... Rxg3+ {[%clk 0:01:00.5]} 51. Kd4 {[%clk 0:00:17.4]}
51... Rg1 {[%clk 0:01:01.5]} 52. Kc5 {[%clk 0:00:17.7]} 52... Rd1 {[%clk
0:01:02.5]} 53. d6 {[%clk 0:00:17.2]} 53... h4 {[%clk 0:01:03.2]} 54. Kxb5
{[%clk 0:00:18.6]} 54... h3 {[%clk 0:01:03.4]} 55. Kc6 {[%clk 0:00:19]} 55... h2
{[%clk 0:01:02.7]} 56. Rh6 {[%clk 0:00:20.6]} 56... h1=Q+ {[%clk 0:01:03.4]} 57.
Rxh1 {[%clk 0:00:21.8]} 57... Rxh1 {[%clk 0:01:05.3]} 58. d7 {[%clk 0:00:22.8]}
58... Rd1 {[%clk 0:01:07]} 59. Kc7 {[%clk 0:00:24]} 59... Kf5 {[%clk 0:01:07.9]}
60. c4 {[%clk 0:00:20.5]} 60... Ke6 {[%clk 0:00:58.9]} 61. d8=Q {[%clk
0:00:16.5]} 61... Rxd8 {[%clk 0:00:59.8]} 62. Kxd8 {[%clk 0:00:18.4]} 62... Kd6
{[%clk 0:00:59.4]} 63. c5+ {[%clk 0:00:20.2]} 63... Kxc5 {[%clk 0:01:00.2]} 64.
Ke7 {[%clk 0:00:21.9]} 64... g4 {[%clk 0:01:01.6]} 0-1

[Event "*** Titled Tuesday Blitz AM"]
[Site "Chess.com"]
[Date "2020.01.07"]
[Round "6"]
[White "Gabrielian_Artur"]
[Black "AdrianPetrisor1992"]
[Result "0-1"]
[WhiteElo "2807"]
[BlackElo "2640"]
[TimeControl "180+2"]
[EndTime "10:20:39 PST"]
[Termination "AdrianPetrisor1992 won on time"]

1. d4 {[%clk 0:03:01.9]} 1... Nf6 {[%clk 0:03:00.5]} 2. c4 {[%clk 0:03:03]} 2...
g6 {[%clk 0:02:58.4]} 3. Nc3 {[%clk 0:03:01.7]} 3... d5 {[%clk 0:02:59.4]} 4.
Nf3 {[%clk 0:03:00.3]} 4... Bg7 {[%clk 0:03:00]} 5. h4 {[%clk 0:03:01.1]} 5...
h5 {[%clk 0:02:41]} 6. Bg5 {[%clk 0:02:55.6]} 6... c6 {[%clk 0:02:36.3]} 7. cxd5
{[%clk 0:02:43.9]} 7... cxd5 {[%clk 0:02:35.6]} 8. e3 {[%clk 0:02:44.2]} 8...
Nc6 {[%clk 0:02:36.1]} 9. Be2 {[%clk 0:02:39.8]} 9... O-O {[%clk 0:02:31.6]} 10.
Qb3 {[%clk 0:02:32.7]} 10... Na5 {[%clk 0:02:28.2]} 11. Qa3 {[%clk 0:02:33.3]}
11... Bg4 {[%clk 0:02:16.7]} 12. Ne5 {[%clk 0:02:17.8]} 12... Bxe2 {[%clk
0:02:16.3]} 13. Nxe2 {[%clk 0:02:18.9]} 13... Nc4 {[%clk 0:02:05.1]} 14. Nxc4
{[%clk 0:02:18.7]} 14... dxc4 {[%clk 0:02:07]} 15. Nc3 {[%clk 0:02:15.4]} 15...
Qd7 {[%clk 0:02:00.4]} 16. O-O {[%clk 0:02:08.5]} 16... b5 {[%clk 0:01:54.7]}
17. Qc5 {[%clk 0:02:00.1]} 17... Rab8 {[%clk 0:01:55.2]} 18. Bxf6 {[%clk
0:01:56.3]} 18... Bxf6 {[%clk 0:01:54.2]} 19. g3 {[%clk 0:01:49.1]} 19... Rfc8
{[%clk 0:01:33.8]} 20. Qd5 {[%clk 0:01:48.1]} 20... Qg4 {[%clk 0:01:24.4]} 21.
Qe4 {[%clk 0:01:34]} 21... e6 {[%clk 0:00:58]} 22. Rfc1 {[%clk 0:01:30.8]} 22...
Qxe4 {[%clk 0:00:52]} 23. Nxe4 {[%clk 0:01:31.5]} 23... Be7 {[%clk 0:00:53.9]}
24. Rc2 {[%clk 0:01:28.8]} 24... a5 {[%clk 0:00:35.6]} 25. a4 {[%clk 0:01:23.5]}
25... bxa4 {[%clk 0:00:21.6]} 26. Rxa4 {[%clk 0:01:23.8]} 26... Bb4 {[%clk
0:00:23.2]} 27. Nf6+ {[%clk 0:01:14.3]} 27... Kg7 {[%clk 0:00:23.5]} 28. Nd7
{[%clk 0:01:15.4]} 28... Rb7 {[%clk 0:00:24.3]} 29. Ne5 {[%clk 0:01:16.5]} 29...
c3 {[%clk 0:00:23.6]} 30. bxc3 {[%clk 0:00:59.2]} 30... Rxc3 {[%clk 0:00:25.5]}
31. Rxc3 {[%clk 0:01:00.3]} 31... Bxc3 {[%clk 0:00:27.4]} 32. Nc4 {[%clk
0:00:38.9]} 32... Rb4 {[%clk 0:00:25.9]} 33. Rxb4 {[%clk 0:00:38.5]} 33... Bxb4
{[%clk 0:00:26.2]} 34. Nb6 {[%clk 0:00:39.3]} 34... Kf6 {[%clk 0:00:24.8]} 35.
Kf1 {[%clk 0:00:40.2]} 35... g5 {[%clk 0:00:25.7]} 36. hxg5+ {[%clk 0:00:40.2]}
36... Kxg5 {[%clk 0:00:27.6]} 37. Ke2 {[%clk 0:00:41.4]} 37... Kg4 {[%clk
0:00:28.7]} 38. Nd7 {[%clk 0:00:31.1]} 38... Kf5 {[%clk 0:00:26.5]} 39. Nb6
{[%clk 0:00:24.9]} 39... f6 {[%clk 0:00:27.2]} 40. f3 {[%clk 0:00:22.5]} 40...
Kg5 {[%clk 0:00:27.5]} 41. e4 {[%clk 0:00:20.4]} 41... Bc3 {[%clk 0:00:24.5]}
42. d5 {[%clk 0:00:21.1]} 42... exd5 {[%clk 0:00:21.9]} 43. Nxd5 {[%clk
0:00:22.3]} 43... Bd4 {[%clk 0:00:20.3]} 44. Nc7 {[%clk 0:00:19.6]} 44... Be5
{[%clk 0:00:19]} 45. f4+ {[%clk 0:00:18.2]} 45... Bxf4 {[%clk 0:00:19.9]} 46.
Ne6+ {[%clk 0:00:19.8]} 46... Kg4 {[%clk 0:00:20.6]} 47. gxf4 {[%clk 0:00:21.1]}
47... a4 {[%clk 0:00:20.4]} 48. Nc5 {[%clk 0:00:17.6]} 48... a3 {[%clk
0:00:21.6]} 49. e5 {[%clk 0:00:16.3]} 49... fxe5 {[%clk 0:00:22.1]} 50. fxe5
{[%clk 0:00:17.1]} 50... Kf5 {[%clk 0:00:23.6]} 51. e6 {[%clk 0:00:17.9]} 51...
Kf6 {[%clk 0:00:24.3]} 52. Kf3 {[%clk 0:00:18.3]} 52... a2 {[%clk 0:00:23.6]}
53. Nb3 {[%clk 0:00:19.2]} 53... Kxe6 {[%clk 0:00:25.1]} 54. Kf4 {[%clk
0:00:19.6]} 54... Kd5 {[%clk 0:00:23.2]} 55. Kg5 {[%clk 0:00:05.9]} 55... Kc4
{[%clk 0:00:24.4]} 0-1

[Event "*** Titled Tuesday Blitz AM"]
[Site "Chess.com"]
[Date "2020.01.07"]
[Round "6"]
[White "karinachess1"]
[Black "enkhtuul"]
[Result "1-0"]
[WhiteElo "2478"]
[BlackElo "2349"]
[TimeControl "180+2"]
[EndTime "10:20:47 PST"]
[Termination "karinachess1 won by checkmate"]

1. e4 {[%clk 0:03:01.9]} 1... Nf6 {[%clk 0:02:59.6]} 2. e5 {[%clk 0:03:01.1]}
2... Nd5 {[%clk 0:03:00.7]} 3. d4 {[%clk 0:03:02.7]} 3... d6 {[%clk 0:03:01.7]}
4. Nf3 {[%clk 0:03:04.3]} 4... Bg4 {[%clk 0:03:02.4]} 5. Be2 {[%clk 0:03:03.4]}
5... e6 {[%clk 0:03:03.2]} 6. O-O {[%clk 0:03:02.8]} 6... Be7 {[%clk 0:03:04.4]}
7. h3 {[%clk 0:03:03.4]} 7... Bh5 {[%clk 0:03:05.5]} 8. c4 {[%clk 0:03:02.2]}
8... Nb6 {[%clk 0:03:06.5]} 9. Nc3 {[%clk 0:03:02]} 9... O-O {[%clk 0:03:07.6]}
10. exd6 {[%clk 0:03:02.1]} 10... cxd6 {[%clk 0:03:08.7]} 11. Be3 {[%clk
0:02:49.7]} 11... d5 {[%clk 0:03:08.9]} 12. c5 {[%clk 0:02:40.9]} 12... Bxf3
{[%clk 0:03:09.6]} 13. Bxf3 {[%clk 0:02:40.4]} 13... Nc4 {[%clk 0:03:10.8]} 14.
Bc1 {[%clk 0:02:41.4]} 14... Nc6 {[%clk 0:03:11.5]} 15. b3 {[%clk 0:02:38.2]}
15... N4a5 {[%clk 0:03:12.6]} 16. Be3 {[%clk 0:02:37.6]} 16... Bf6 {[%clk
0:03:13.1]} 17. Qd2 {[%clk 0:02:34.3]} 17... g6 {[%clk 0:02:57]} 18. Rad1 {[%clk
0:02:33.8]} 18... b6 {[%clk 0:02:38.1]} 19. cxb6 {[%clk 0:02:27.3]} 19... axb6
{[%clk 0:02:40]} 20. Nb5 {[%clk 0:02:28]} 20... Be7 {[%clk 0:02:33.5]} 21. Bf4
{[%clk 0:02:10.8]} 21... Rc8 {[%clk 0:02:28.8]} 22. Rc1 {[%clk 0:02:09.6]} 22...
Bb4 {[%clk 0:02:27]} 23. Qe3 {[%clk 0:02:02.8]} 23... Qe7 {[%clk 0:02:14.7]} 24.
Rc2 {[%clk 0:01:58.3]} 24... Rfd8 {[%clk 0:02:04.6]} 25. Rfc1 {[%clk 0:01:58.5]}
25... Ba3 {[%clk 0:01:01.2]} 26. Rd1 {[%clk 0:01:42.9]} 26... Bb4 {[%clk
0:00:57.2]} 27. Ra1 {[%clk 0:01:41.1]} 27... Na7 {[%clk 0:00:54.3]} 28. Rxc8
{[%clk 0:01:23.6]} 28... Rxc8 {[%clk 0:00:56.2]} 29. Nxa7 {[%clk 0:01:18.3]}
29... Qxa7 {[%clk 0:00:58.1]} 30. Rc1 {[%clk 0:01:15.9]} 30... Qb7 {[%clk
0:00:50.5]} 31. Be5 {[%clk 0:00:58.9]} 31... Bf8 {[%clk 0:00:50.1]} 32. h4
{[%clk 0:00:55.1]} 32... Nc6 {[%clk 0:00:45.8]} 33. Bf6 {[%clk 0:00:52.3]} 33...
Bg7 {[%clk 0:00:44.2]} 34. Bxg7 {[%clk 0:00:49.8]} 34... Kxg7 {[%clk 0:00:45.5]}
35. h5 {[%clk 0:00:51.5]} 35... Ne7 {[%clk 0:00:36.4]} 36. Rxc8 {[%clk
0:00:34.3]} 36... Qxc8 {[%clk 0:00:36]} 37. Qe5+ {[%clk 0:00:33.5]} 37... f6
{[%clk 0:00:25.8]} 38. Qd6 {[%clk 0:00:29.3]} 38... Nf5 {[%clk 0:00:26.6]} 39.
Qa3 {[%clk 0:00:19.3]} 39... Nxd4 {[%clk 0:00:22.4]} 40. Qe7+ {[%clk 0:00:19.1]}
40... Kh6 {[%clk 0:00:20.2]} 41. Qxf6 {[%clk 0:00:18.2]} 41... Qc1+ {[%clk
0:00:21.2]} 42. Kh2 {[%clk 0:00:18.5]} 42... Nxf3+ {[%clk 0:00:22.2]} 43. Qxf3
{[%clk 0:00:20.4]} 43... Qg5 {[%clk 0:00:22.3]} 44. hxg6 {[%clk 0:00:20.1]}
44... Kxg6 {[%clk 0:00:23.4]} 45. Qd3+ {[%clk 0:00:20.5]} 45... Kg7 {[%clk
0:00:23.4]} 46. Qd4+ {[%clk 0:00:20.5]} 46... Kf7 {[%clk 0:00:22.1]} 47. Qxb6
{[%clk 0:00:21.9]} 47... Qf4+ {[%clk 0:00:23]} 48. g3 {[%clk 0:00:22.9]} 48...
Qh6+ {[%clk 0:00:23.3]} 49. Kg2 {[%clk 0:00:22.2]} 49... Qd2 {[%clk 0:00:24.3]}
50. a4 {[%clk 0:00:22.3]} 50... d4 {[%clk 0:00:24.3]} 51. a5 {[%clk 0:00:23.2]}
51... d3 {[%clk 0:00:20.9]} 52. a6 {[%clk 0:00:24]} 52... Qe2 {[%clk 0:00:21.4]}
53. Qb7+ {[%clk 0:00:22.7]} 53... Kf6 {[%clk 0:00:14.7]} 54. a7 {[%clk
0:00:23.2]} 54... d2 {[%clk 0:00:11.8]} 55. a8=Q {[%clk 0:00:23.8]} 55... d1=Q
{[%clk 0:00:12.6]} 56. Qh8+ {[%clk 0:00:18]} 56... Kf5 {[%clk 0:00:08.5]} 57.
Qbxh7+ {[%clk 0:00:18.3]} 57... Kg5 {[%clk 0:00:07.5]} 58. Q8g7# {[%clk
0:00:17.9]} 1-0

[Event "*** Titled Tuesday Blitz AM"]
[Site "Chess.com"]
[Date "2020.01.07"]
[Round "6"]
[White "SiddharthGMJagadeesh"]
[Black "OK97"]
[Result "0-1"]
[WhiteElo "2546"]
[BlackElo "2838"]
[TimeControl "180+2"]
[EndTime "10:21:07 PST"]
[Termination "OK97 won by resignation"]

1. d4 {[%clk 0:03:01.9]} 1... Nf6 {[%clk 0:03:00.2]} 2. c4 {[%clk 0:03:02.6]}
2... g6 {[%clk 0:03:01.7]} 3. Nc3 {[%clk 0:03:03.6]} 3... Bg7 {[%clk 0:03:03.3]}
4. e4 {[%clk 0:03:04.7]} 4... d6 {[%clk 0:03:04.6]} 5. f4 {[%clk 0:03:06.1]}
5... O-O {[%clk 0:03:05.2]} 6. Nf3 {[%clk 0:03:07.1]} 6... e5 {[%clk 0:02:57.9]}
7. dxe5 {[%clk 0:03:01.6]} 7... dxe5 {[%clk 0:02:59.8]} 8. Qxd8 {[%clk
0:03:02.7]} 8... Rxd8 {[%clk 0:03:01.5]} 9. Nxe5 {[%clk 0:03:04.6]} 9... Na6
{[%clk 0:02:24.6]} 10. Be2 {[%clk 0:02:49.3]} 10... Nc5 {[%clk 0:02:21.2]} 11.
Bf3 {[%clk 0:02:47.3]} 11... Be6 {[%clk 0:02:15.9]} 12. O-O {[%clk 0:02:24.4]}
12... Nfd7 {[%clk 0:02:16.9]} 13. Nxd7 {[%clk 0:02:13.3]} 13... Rxd7 {[%clk
0:02:15.2]} 14. Nd5 {[%clk 0:01:50.8]} 14... c6 {[%clk 0:02:11]} 15. Ne3 {[%clk
0:01:51.6]} 15... Bd4 {[%clk 0:01:45.1]} 16. Kh1 {[%clk 0:01:24]} 16... f6
{[%clk 0:01:33.9]} 17. f5 {[%clk 0:00:41.6]} 17... Bf7 {[%clk 0:01:34]} 18. fxg6
{[%clk 0:00:42.6]} 18... hxg6 {[%clk 0:01:34.7]} 19. Rd1 {[%clk 0:00:15.8]}
19... Rad8 {[%clk 0:01:28]} 20. Ng4 {[%clk 0:00:16.9]} 20... Bxc4 {[%clk
0:01:16]} 21. Rxd4 {[%clk 0:00:17.8]} 21... Rxd4 {[%clk 0:01:16.8]} 22. Be3
{[%clk 0:00:19.4]} 22... Kg7 {[%clk 0:01:04.5]} 23. Bxd4 {[%clk 0:00:19.7]}
23... Rxd4 {[%clk 0:01:06.2]} 24. Re1 {[%clk 0:00:20.8]} 24... Nd3 {[%clk
0:01:02.9]} 25. Re2 {[%clk 0:00:19.6]} 25... Ne5 {[%clk 0:00:35.1]} 26. Re1
{[%clk 0:00:15.4]} 26... Bxa2 {[%clk 0:00:26.4]} 27. Nxe5 {[%clk 0:00:15.5]}
27... fxe5 {[%clk 0:00:27.3]} 28. Ra1 {[%clk 0:00:17]} 28... Ra4 {[%clk
0:00:16]} 29. h3 {[%clk 0:00:13.7]} 29... Bb3 {[%clk 0:00:16.5]} 30. Rc1 {[%clk
0:00:12.9]} 30... Rd4 {[%clk 0:00:15.1]} 31. Rc3 {[%clk 0:00:13.1]} 31... Be6
{[%clk 0:00:15.6]} 32. Kh2 {[%clk 0:00:14.3]} 32... Kf6 {[%clk 0:00:16.8]} 33.
Ra3 {[%clk 0:00:14.4]} 33... a6 {[%clk 0:00:17.9]} 34. Ra1 {[%clk 0:00:14.7]}
34... c5 {[%clk 0:00:18.3]} 35. Rc1 {[%clk 0:00:15.4]} 35... c4 {[%clk
0:00:19.1]} 36. Kg3 {[%clk 0:00:16.6]} 36... Bd7 {[%clk 0:00:20.2]} 37. Rc2
{[%clk 0:00:15.2]} 37... Bc6 {[%clk 0:00:20.9]} 38. Re2 {[%clk 0:00:12.6]} 38...
b6 {[%clk 0:00:22.2]} 39. Kf2 {[%clk 0:00:13.3]} 39... b5 {[%clk 0:00:23.7]} 40.
Ke3 {[%clk 0:00:13.6]} 40... Rd3+ {[%clk 0:00:25.2]} 41. Kf2 {[%clk 0:00:14.8]}
41... a5 {[%clk 0:00:26.7]} 42. Rc2 {[%clk 0:00:15.7]} 42... Rd4 {[%clk
0:00:24.6]} 43. Ke3 {[%clk 0:00:16.6]} 43... b4 {[%clk 0:00:26.2]} 44. g4 {[%clk
0:00:16.4]} 44... a4 {[%clk 0:00:21.5]} 45. h4 {[%clk 0:00:17]} 45... a3 {[%clk
0:00:20.5]} 46. bxa3 {[%clk 0:00:17.2]} 46... b3 {[%clk 0:00:17.3]} 47. Rb2
{[%clk 0:00:15.2]} 47... Ba4 {[%clk 0:00:17.9]} 48. Rb1 {[%clk 0:00:14]} 48...
c3 {[%clk 0:00:18.7]} 49. Rf1 {[%clk 0:00:14.3]} 49... c2 {[%clk 0:00:14.4]} 50.
Be2+ {[%clk 0:00:15.3]} 50... Ke7 {[%clk 0:00:15.5]} 51. Bd3 {[%clk 0:00:09.9]}
51... b2 {[%clk 0:00:16.8]} 52. Bxc2 {[%clk 0:00:11.5]} 52... Bxc2 {[%clk
0:00:18.7]} 53. h5 {[%clk 0:00:13]} 53... gxh5 {[%clk 0:00:19.5]} 54. gxh5
{[%clk 0:00:14.9]} 54... b1=Q {[%clk 0:00:20]} 55. Rxb1 {[%clk 0:00:14.5]} 55...
Bxb1 {[%clk 0:00:21.9]} 56. h6 {[%clk 0:00:16.2]} 56... Bxe4 {[%clk 0:00:22.7]}
57. h7 {[%clk 0:00:17]} 57... Bxh7 {[%clk 0:00:23.6]} 58. a4 {[%clk 0:00:18.6]}
58... Rxa4 {[%clk 0:00:24.3]} 59. Kf3 {[%clk 0:00:18.9]} 59... e4+ {[%clk
0:00:25.1]} 0-1

[Event "*** Titled Tuesday Blitz AM"]
[Site "Chess.com"]
[Date "2020.01.07"]
[Round "6"]
[White "LLRChess"]
[Black "Gareth-Bale11"]
[Result "1-0"]
[WhiteElo "2317"]
[BlackElo "2703"]
[TimeControl "180+2"]
[EndTime "10:21:16 PST"]
[Termination "LLRChess won by resignation"]

1. e4 {[%clk 0:03:00.4]} 1... e5 {[%clk 0:02:58.7]} 2. Nf3 {[%clk 0:03:01.6]}
2... Nc6 {[%clk 0:02:58.4]} 3. Bb5 {[%clk 0:03:02.7]} 3... a6 {[%clk 0:02:58.4]}
4. Bxc6 {[%clk 0:03:03.4]} 4... dxc6 {[%clk 0:02:59.3]} 5. Nc3 {[%clk 0:03:04]}
5... f6 {[%clk 0:02:47.7]} 6. d4 {[%clk 0:03:01.9]} 6... exd4 {[%clk 0:02:47.8]}
7. Qxd4 {[%clk 0:03:02.8]} 7... Qxd4 {[%clk 0:02:48.2]} 8. Nxd4 {[%clk 0:03:04]}
8... Bd7 {[%clk 0:02:46.9]} 9. Bf4 {[%clk 0:03:04.3]} 9... O-O-O {[%clk
0:02:48.2]} 10. O-O-O {[%clk 0:03:04.7]} 10... Ne7 {[%clk 0:02:49.8]} 11. f3
{[%clk 0:02:57.6]} 11... Ng6 {[%clk 0:02:50.3]} 12. Be3 {[%clk 0:02:52.5]} 12...
h5 {[%clk 0:02:47.7]} 13. h4 {[%clk 0:02:42.3]} 13... Bd6 {[%clk 0:02:44.8]} 14.
Nce2 {[%clk 0:02:35.3]} 14... c5 {[%clk 0:02:41.6]} 15. Nf5 {[%clk 0:02:34.7]}
15... Bxf5 {[%clk 0:02:42]} 16. exf5 {[%clk 0:02:35.6]} 16... Rhe8 {[%clk
0:02:37.7]} 17. fxg6 {[%clk 0:02:01.8]} 17... Rxe3 {[%clk 0:02:37.1]} 18. Nc3
{[%clk 0:01:51.5]} 18... c6 {[%clk 0:02:21.7]} 19. Ne4 {[%clk 0:01:47.9]} 19...
Bf4 {[%clk 0:02:20.7]} 20. Rxd8+ {[%clk 0:01:44.2]} 20... Kxd8 {[%clk
0:02:22.6]} 21. Kd1 {[%clk 0:01:45.6]} 21... c4 {[%clk 0:02:16.9]} 22. Re1
{[%clk 0:01:19.9]} 22... Rxe1+ {[%clk 0:02:16.7]} 23. Kxe1 {[%clk 0:01:20.8]}
23... b6 {[%clk 0:02:18.6]} 24. g4 {[%clk 0:01:20.8]} 24... hxg4 {[%clk
0:02:01.6]} 25. fxg4 {[%clk 0:01:20.9]} 25... Ke7 {[%clk 0:02:03.5]} 26. Ke2
{[%clk 0:01:08.9]} 26... Ke6 {[%clk 0:02:03.9]} 27. Kf3 {[%clk 0:01:05.2]} 27...
Be5 {[%clk 0:02:04.3]} 28. b3 {[%clk 0:01:01.1]} 28... cxb3 {[%clk 0:02:06.2]}
29. cxb3 {[%clk 0:01:00.5]} 29... f5 {[%clk 0:02:07.1]} 30. Ng5+ {[%clk
0:00:57.9]} 30... Kf6 {[%clk 0:02:07.9]} 31. Nf7 {[%clk 0:00:48.2]} 31... Bc7
{[%clk 0:02:08.7]} 32. h5 {[%clk 0:00:45.7]} 32... fxg4+ {[%clk 0:02:05.7]} 33.
Kxg4 {[%clk 0:00:45.9]} 33... c5 {[%clk 0:02:06.3]} 34. Ng5 {[%clk 0:00:42.1]}
34... Be5 {[%clk 0:01:55.7]} 35. Ne4+ {[%clk 0:00:37.8]} 35... Ke6 {[%clk
0:01:56.7]} 36. Kg5 {[%clk 0:00:38.4]} 36... Bb2 {[%clk 0:01:53.4]} 37. Kg4
{[%clk 0:00:33.6]} 37... Kd5 {[%clk 0:01:49.8]} 38. Ng3 {[%clk 0:00:26.3]} 38...
b5 {[%clk 0:01:37.9]} 39. Nf5 {[%clk 0:00:20.7]} 39... c4 {[%clk 0:01:30.2]} 40.
bxc4+ {[%clk 0:00:21.6]} 40... bxc4 {[%clk 0:01:32.1]} 41. Kf3 {[%clk
0:00:22.6]} 41... Ke6 {[%clk 0:01:24.5]} 42. h6 {[%clk 0:00:23.4]} 42... gxh6
{[%clk 0:01:22.8]} 43. Nxh6 {[%clk 0:00:24.3]} 43... Kf6 {[%clk 0:01:10.1]} 44.
Ke4 {[%clk 0:00:21.2]} 44... Kxg6 {[%clk 0:01:11.1]} 45. Ng4 {[%clk 0:00:22.1]}
45... Bc1 {[%clk 0:01:04.5]} 46. Ne5+ {[%clk 0:00:21.9]} 46... Kf6 {[%clk
0:01:04.8]} 47. Nxc4 {[%clk 0:00:22.9]} 47... Ke6 {[%clk 0:01:06.7]} 48. Kd4
{[%clk 0:00:22.4]} 48... Kd7 {[%clk 0:01:05.6]} 49. Kc5 {[%clk 0:00:23.4]} 49...
Kc7 {[%clk 0:01:06.9]} 50. a4 {[%clk 0:00:21.4]} 50... Bh6 {[%clk 0:01:07.7]}
51. Ne5 {[%clk 0:00:18.8]} 51... Bf8+ {[%clk 0:01:09.6]} 52. Kc4 {[%clk
0:00:19.7]} 52... Bd6 {[%clk 0:01:09.8]} 53. Nd3 {[%clk 0:00:20.2]} 53... Kc6
{[%clk 0:01:10]} 54. Kb3 {[%clk 0:00:20.4]} 54... Kd5 {[%clk 0:01:10.7]} 55. Nb2
{[%clk 0:00:20.9]} 55... Kd4 {[%clk 0:01:11.2]} 56. Nc4 {[%clk 0:00:21.8]} 56...
Bc7 {[%clk 0:01:12.6]} 57. Nb2 {[%clk 0:00:22.4]} 57... Ke3 {[%clk 0:01:11.2]}
58. Kb4 {[%clk 0:00:20.6]} 58... Kd2 {[%clk 0:01:08.4]} 59. Nc4+ {[%clk
0:00:20.1]} 59... Kd3 {[%clk 0:01:08.5]} 60. Kb3 {[%clk 0:00:19.7]} 60... Kd4
{[%clk 0:01:07.3]} 61. Nb2 {[%clk 0:00:19.7]} 61... Ba5 {[%clk 0:01:07.3]} 62.
Nc4 {[%clk 0:00:20.9]} 62... Be1 {[%clk 0:01:08.9]} 63. Nb2 {[%clk 0:00:21.8]}
63... Kd5 {[%clk 0:01:06.4]} 64. Nc4 {[%clk 0:00:22.6]} 64... Kc5 {[%clk
0:01:06.8]} 65. Nb2 {[%clk 0:00:23.6]} 65... Ba5 {[%clk 0:01:07]} 66. Nc4 {[%clk
0:00:24.1]} 66... Bc7 {[%clk 0:01:07.5]} 67. Nb2 {[%clk 0:00:25.4]} 67... Kd4
{[%clk 0:01:08.5]} 68. Nc4 {[%clk 0:00:26.2]} 68... Kd5 {[%clk 0:01:09.5]} 69.
Nb2 {[%clk 0:00:27.1]} 69... Kd4 {[%clk 0:01:10.7]} 70. Nc4 {[%clk 0:00:28.2]}
70... Kd3 {[%clk 0:01:12.6]} 71. Nb2+ {[%clk 0:00:28.9]} 71... Kd2 {[%clk
0:01:14]} 72. Nc4+ {[%clk 0:00:29.9]} 72... Kc1 {[%clk 0:01:15.4]} 73. Nb2
{[%clk 0:00:30.7]} 73... Kb1 {[%clk 0:01:16.2]} 74. Nc4 {[%clk 0:00:31.7]} 74...
Kc1 {[%clk 0:01:17.5]} 75. Nb2 {[%clk 0:00:32.4]} 75... Be5 {[%clk 0:01:17.7]}
76. Nd3+ {[%clk 0:00:32.7]} 76... Kd2 {[%clk 0:01:19]} 77. Nxe5 {[%clk
0:00:33.5]} 1-0